[Event "Early-Titled-Tuesday-Blitz-December-26-2023"]
[Site "Chess.com"]
[Date "2023.12.26"]
[Round "5"]
[White "MightyGMpretender"]
[Black "DrCeltic"]
[Result "1-0"]
[WhiteElo "2731"]
[BlackElo "2514"]
[TimeControl "180+1"]
[EndTime "8:54:08 PST"]
[Termination "MightyGMpretender won by resignation"]

1. Nf3 {[%clk 0:03:00.9]} 1... Nf6 {[%clk 0:02:59.6]} 2. g3 {[%clk 0:03:01.8]}
2... d5 {[%clk 0:02:59.5]} 3. Bg2 {[%clk 0:03:02.7]} 3... Bf5 {[%clk 0:02:59.9]}
4. O-O {[%clk 0:03:03.4]} 4... e6 {[%clk 0:03:00.6]} 5. d3 {[%clk 0:03:03.5]}
5... h6 {[%clk 0:03:00.1]} 6. c4 {[%clk 0:03:04.1]} 6... c6 {[%clk 0:03:00.5]}
7. Qb3 {[%clk 0:03:02.3]} 7... Qb6 {[%clk 0:03:00.4]} 8. Be3 {[%clk 0:03:03]}
8... Qc7 {[%clk 0:02:59.4]} 9. Nc3 {[%clk 0:03:02.5]} 9... Nbd7 {[%clk
0:02:56.7]} 10. Rfc1 {[%clk 0:02:58.9]} 10... Bc5 {[%clk 0:02:41.1]} 11. d4
{[%clk 0:02:45.8]} 11... dxc4 {[%clk 0:02:34.9]} 12. Qxc4 {[%clk 0:02:46.7]}
12... Be7 {[%clk 0:02:31.1]} 13. Bf4 {[%clk 0:02:42.6]} 13... Qb6 {[%clk
0:02:31.1]} 14. Na4 {[%clk 0:02:37.9]} 14... Qb4 {[%clk 0:02:27.2]} 15. Qxb4
{[%clk 0:02:29.7]} 15... Bxb4 {[%clk 0:02:27.2]} 16. a3 {[%clk 0:02:26.5]} 16...
Be7 {[%clk 0:02:25.5]} 17. b4 {[%clk 0:02:26.8]} 17... O-O {[%clk 0:02:19.5]}
18. Nc5 {[%clk 0:02:27.1]} 18... Nxc5 {[%clk 0:02:09.6]} 19. bxc5 {[%clk
0:02:28]} 19... Nd5 {[%clk 0:02:01.4]} 20. Ra2 {[%clk 0:02:24.2]} 20... Nxf4
{[%clk 0:01:53.2]} 21. gxf4 {[%clk 0:02:23.9]} 21... Rfd8 {[%clk 0:01:49.3]} 22.
e3 {[%clk 0:02:23.8]} 22... b6 {[%clk 0:01:44]} 23. Ne5 {[%clk 0:02:21.9]} 23...
Rac8 {[%clk 0:01:34.7]} 24. Nxc6 {[%clk 0:02:21.5]} 24... Rd7 {[%clk 0:01:35.2]}
25. cxb6 {[%clk 0:02:19.8]} 25... Kf8 {[%clk 0:01:28.7]} 26. bxa7 {[%clk
0:01:59.4]} 26... Rxa7 {[%clk 0:01:24]} 27. Rca1 {[%clk 0:01:55.7]} 27... Ra4
{[%clk 0:01:16.5]} 28. Nxe7 {[%clk 0:01:53.7]} 28... Kxe7 {[%clk 0:01:17.4]} 29.
Rb2 {[%clk 0:01:52.1]} 29... Rc7 {[%clk 0:01:14.3]} 30. h4 {[%clk 0:01:51.7]}
30... Rca7 {[%clk 0:01:11.6]} 31. Rb7+ {[%clk 0:01:51.9]} 31... Kf6 {[%clk
0:01:09.9]} 32. Rxa7 {[%clk 0:01:51.8]} 32... Rxa7 {[%clk 0:01:10.8]} 33. a4
{[%clk 0:01:52.5]} 33... Ra5 {[%clk 0:01:10.2]} 34. Bc6 {[%clk 0:01:52.9]} 34...
Bc2 {[%clk 0:01:08.3]} 35. Bb5 {[%clk 0:01:52.5]} 35... g5 {[%clk 0:01:03.5]}
36. hxg5+ {[%clk 0:01:52.3]} 36... hxg5 {[%clk 0:01:04.4]} 37. fxg5+ {[%clk
0:01:53.2]} 37... Kxg5 {[%clk 0:01:04.8]} 38. Kf1 {[%clk 0:01:52.6]} 38... Kf5
{[%clk 0:01:01.1]} 39. Ke1 {[%clk 0:01:52.8]} 39... e5 {[%clk 0:01:01.7]} 40.
Kd2 {[%clk 0:01:53.1]} 40... Bb3 {[%clk 0:00:59.8]} 41. Kc3 {[%clk 0:01:52.9]}
41... Bd5 {[%clk 0:01:00.1]} 42. Kb4 {[%clk 0:01:53]} 42... Ra8 {[%clk
0:01:00.4]} 43. Kc5 {[%clk 0:01:52.4]} 43... Ke4 {[%clk 0:00:54.2]} 44. f3+
{[%clk 0:01:51.5]} 44... Kxe3 {[%clk 0:00:52.5]} 45. Kxd5 {[%clk 0:01:52]} 45...
exd4 {[%clk 0:00:52.7]} 46. Ra3+ {[%clk 0:01:52.5]} 46... Kf4 {[%clk 0:00:49]}
47. Kxd4 {[%clk 0:01:53.1]} 47... Rd8+ {[%clk 0:00:47.5]} 48. Kc5 {[%clk
0:01:53.6]} 48... f5 {[%clk 0:00:47.1]} 49. a5 {[%clk 0:01:53.9]} 49... Rc8+
{[%clk 0:00:47.8]} 50. Bc6 {[%clk 0:01:54.1]} 1-0

[Event "Early-Titled-Tuesday-Blitz-December-26-2023"]
[Site "Chess.com"]
[Date "2023.12.26"]
[Round "5"]
[White "Ducke13"]
[Black "Lady_Nika"]
[Result "0-1"]
[WhiteElo "2399"]
[BlackElo "2607"]
[TimeControl "180+1"]
[EndTime "8:54:09 PST"]
[Termination "Lady_Nika won by checkmate"]

1. d4 {[%clk 0:02:55.3]} 1... d5 {[%clk 0:02:58.6]} 2. g3 {[%clk 0:02:50.7]}
2... e6 {[%clk 0:02:58.7]} 3. Nf3 {[%clk 0:02:50.7]} 3... f5 {[%clk 0:02:58.9]}
4. Bg2 {[%clk 0:02:50.4]} 4... Nf6 {[%clk 0:02:59.8]} 5. O-O {[%clk 0:02:50.5]}
5... c6 {[%clk 0:03:00.7]} 6. c4 {[%clk 0:02:50.4]} 6... Bd6 {[%clk 0:03:01.1]}
7. Ne5 {[%clk 0:02:48.5]} 7... O-O {[%clk 0:03:01.1]} 8. Bf4 {[%clk 0:02:48.8]}
8... Qe7 {[%clk 0:03:00.9]} 9. Nd2 {[%clk 0:02:40.9]} 9... Nbd7 {[%clk
0:03:00.9]} 10. Ndf3 {[%clk 0:02:39.7]} 10... Ne4 {[%clk 0:03:00.2]} 11. e3
{[%clk 0:02:28.8]} 11... Ndf6 {[%clk 0:02:58.4]} 12. Nd3 {[%clk 0:02:27.1]}
12... Bd7 {[%clk 0:02:52.9]} 13. Bxd6 {[%clk 0:02:22.8]} 13... Qxd6 {[%clk
0:02:53.8]} 14. Nfe5 {[%clk 0:02:22.9]} 14... Be8 {[%clk 0:02:52.7]} 15. f3
{[%clk 0:02:21.2]} 15... Ng5 {[%clk 0:02:52.7]} 16. c5 {[%clk 0:01:53.2]} 16...
Qe7 {[%clk 0:02:48.9]} 17. b4 {[%clk 0:01:53.3]} 17... a6 {[%clk 0:02:48.3]} 18.
Qb3 {[%clk 0:01:52.3]} 18... Nd7 {[%clk 0:02:47.5]} 19. a4 {[%clk 0:01:50.7]}
19... Nxe5 {[%clk 0:02:47.2]} 20. Nxe5 {[%clk 0:01:49.9]} 20... Nf7 {[%clk
0:02:45.8]} 21. f4 {[%clk 0:01:16]} 21... Nxe5 {[%clk 0:02:45.6]} 22. dxe5
{[%clk 0:01:16.9]} 22... g5 {[%clk 0:02:45.5]} 23. Qc3 {[%clk 0:01:07.7]} 23...
Rf7 {[%clk 0:02:45.3]} 24. b5 {[%clk 0:00:54]} 24... cxb5 {[%clk 0:02:44.4]} 25.
axb5 {[%clk 0:00:52.1]} 25... Bxb5 {[%clk 0:02:44.1]} 26. Rfb1 {[%clk 0:00:52]}
26... Rc8 {[%clk 0:02:43.7]} 27. Rc1 {[%clk 0:00:46.4]} 27... gxf4 {[%clk
0:02:42.4]} 28. exf4 {[%clk 0:00:46]} 28... Qf8 {[%clk 0:02:42.4]} 29. Qd4
{[%clk 0:00:42.9]} 29... Rfc7 {[%clk 0:02:42.2]} 30. Ra3 {[%clk 0:00:14.3]}
30... Rxc5 {[%clk 0:02:42.1]} 31. Rac3 {[%clk 0:00:14.9]} 31... Rxc3 {[%clk
0:02:40.9]} 32. Rxc3 {[%clk 0:00:15.8]} 32... Bc4 {[%clk 0:02:41.3]} 33. h4
{[%clk 0:00:11.1]} 33... Qc5 {[%clk 0:02:39]} 34. Qxc5 {[%clk 0:00:04.1]} 34...
Rxc5 {[%clk 0:02:39.9]} 35. Kf2 {[%clk 0:00:04.1]} 35... b5 {[%clk 0:02:40.1]}
36. Ke3 {[%clk 0:00:04.6]} 36... b4 {[%clk 0:02:40.6]} 37. Rc1 {[%clk
0:00:04.8]} 37... a5 {[%clk 0:02:40.9]} 38. Kd4 {[%clk 0:00:05]} 38... Rc7
{[%clk 0:02:40.8]} 39. h5 {[%clk 0:00:02.3]} 39... b3 {[%clk 0:02:40.1]} 40. h6
{[%clk 0:00:03.2]} 40... Rb7 {[%clk 0:02:37.9]} 41. Rb1 {[%clk 0:00:02.4]} 41...
a4 {[%clk 0:02:38.1]} 42. Kc3 {[%clk 0:00:02.7]} 42... a3 {[%clk 0:02:38.3]} 43.
Rg1 {[%clk 0:00:01.5]} 43... a2 {[%clk 0:02:36.7]} 44. g4 {[%clk 0:00:02.4]}
44... b2 {[%clk 0:02:36.8]} 45. gxf5 {[%clk 0:00:02.8]} 45... b1=Q {[%clk
0:02:36.9]} 46. fxe6 {[%clk 0:00:02.5]} 46... Qxg1 {[%clk 0:02:35.8]} 47. Bxd5
{[%clk 0:00:02.4]} 47... a1=Q+ {[%clk 0:02:36.2]} 48. Kxc4 {[%clk 0:00:02.3]}
48... Qgd4# {[%clk 0:02:35.7]} 0-1

[Event "Early-Titled-Tuesday-Blitz-December-26-2023"]
[Site "Chess.com"]
[Date "2023.12.26"]
[Round "5"]
[White "Ramosha"]
[Black "Philosopherrr"]
[Result "0-1"]
[WhiteElo "2567"]
[BlackElo "2403"]
[TimeControl "180+1"]
[EndTime "8:54:28 PST"]
[Termination "Philosopherrr won by resignation"]

1. e4 {[%clk 0:03:00.9]} 1... e5 {[%clk 0:02:57.8]} 2. Nf3 {[%clk 0:02:59.2]}
2... Nc6 {[%clk 0:02:55.4]} 3. d4 {[%clk 0:02:58.2]} 3... exd4 {[%clk
0:02:53.1]} 4. Nxd4 {[%clk 0:02:59.1]} 4... Qf6 {[%clk 0:02:50.6]} 5. c3 {[%clk
0:02:57.7]} 5... Bc5 {[%clk 0:02:50.1]} 6. Be3 {[%clk 0:02:57.7]} 6... Nge7
{[%clk 0:02:44.9]} 7. Be2 {[%clk 0:02:57.2]} 7... O-O {[%clk 0:02:42.2]} 8. O-O
{[%clk 0:02:56.8]} 8... Bb6 {[%clk 0:02:41.4]} 9. Na3 {[%clk 0:02:55.5]} 9... d5
{[%clk 0:02:39.4]} 10. Nxc6 {[%clk 0:02:55.4]} 10... bxc6 {[%clk 0:02:36.7]} 11.
Bxb6 {[%clk 0:02:55.3]} 11... axb6 {[%clk 0:02:36.3]} 12. Bf3 {[%clk 0:02:55.6]}
12... Be6 {[%clk 0:02:30.2]} 13. Nc2 {[%clk 0:02:50]} 13... Rfd8 {[%clk
0:02:23.2]} 14. Qe2 {[%clk 0:02:49.2]} 14... dxe4 {[%clk 0:01:59.9]} 15. Bxe4
{[%clk 0:02:48.1]} 15... Rxa2 {[%clk 0:01:59]} 16. Nd4 {[%clk 0:02:45.8]} 16...
Rxa1 {[%clk 0:01:57.9]} 17. Rxa1 {[%clk 0:02:46.7]} 17... c5 {[%clk 0:01:52.9]}
18. Nb5 {[%clk 0:02:45.6]} 18... c6 {[%clk 0:01:45.5]} 19. Nc7 {[%clk 0:02:41]}
19... g6 {[%clk 0:01:43.1]} 20. g3 {[%clk 0:02:39.1]} 20... b5 {[%clk 0:01:38]}
21. Qe3 {[%clk 0:02:35.8]} 21... Qe5 {[%clk 0:01:23.8]} 22. Nxe6 {[%clk
0:02:35.8]} 22... Qxe6 {[%clk 0:01:23.2]} 23. f3 {[%clk 0:02:32.9]} 23... c4
{[%clk 0:01:21.1]} 24. Qc5 {[%clk 0:02:28.8]} 24... Rd2 {[%clk 0:01:11]} 25. Ra7
{[%clk 0:02:19.1]} 25... Qh3 {[%clk 0:00:53.9]} 26. Ra8+ {[%clk 0:02:04.8]}
26... Nc8 {[%clk 0:00:51.3]} 27. Rxc8+ {[%clk 0:01:59.7]} 27... Qxc8 {[%clk
0:00:50.6]} 28. Qg5 {[%clk 0:01:38.7]} 28... Rxb2 {[%clk 0:00:43.9]} 29. Qc1
{[%clk 0:01:32.9]} 29... Ra2 {[%clk 0:00:41.8]} 30. g4 {[%clk 0:01:25.8]} 30...
Qb8 {[%clk 0:00:37]} 31. f4 {[%clk 0:01:17.9]} 31... Qa7+ {[%clk 0:00:36.7]} 32.
Kh1 {[%clk 0:01:17.2]} 32... Qf2 {[%clk 0:00:25]} 0-1

[Event "Early-Titled-Tuesday-Blitz-December-26-2023"]
[Site "Chess.com"]
[Date "2023.12.26"]
[Round "5"]
[White "djokovic74"]
[Black "Petrakejzar96"]
[Result "1-0"]
[WhiteElo "2641"]
[BlackElo "2311"]
[TimeControl "180+1"]
[EndTime "8:54:29 PST"]
[Termination "djokovic74 won by checkmate"]

1. c4 {[%clk 0:03:00.9]} 1... Nf6 {[%clk 0:02:57.8]} 2. Nf3 {[%clk 0:02:59.7]}
2... e6 {[%clk 0:02:55.6]} 3. g3 {[%clk 0:02:59.6]} 3... d5 {[%clk 0:02:54.6]}
4. d4 {[%clk 0:02:59.9]} 4... dxc4 {[%clk 0:02:51.3]} 5. Bg2 {[%clk 0:03:00.1]}
5... c5 {[%clk 0:02:51.6]} 6. O-O {[%clk 0:02:59.8]} 6... Nc6 {[%clk 0:02:40]}
7. dxc5 {[%clk 0:02:59.1]} 7... Qxd1 {[%clk 0:02:37.4]} 8. Rxd1 {[%clk
0:02:59.1]} 8... Bxc5 {[%clk 0:02:35.7]} 9. Nbd2 {[%clk 0:02:59.4]} 9... O-O
{[%clk 0:02:33.4]} 10. Nxc4 {[%clk 0:02:57.2]} 10... a6 {[%clk 0:02:31.5]} 11.
Be3 {[%clk 0:02:50.7]} 11... Bxe3 {[%clk 0:02:30.5]} 12. Nxe3 {[%clk 0:02:51.1]}
12... Rb8 {[%clk 0:02:26.6]} 13. Rac1 {[%clk 0:02:47.3]} 13... Nb4 {[%clk
0:02:22.8]} 14. a3 {[%clk 0:02:30.7]} 14... Nbd5 {[%clk 0:02:22.8]} 15. Nxd5
{[%clk 0:02:24.4]} 15... Nxd5 {[%clk 0:02:23.7]} 16. e4 {[%clk 0:02:22.9]} 16...
Nf6 {[%clk 0:02:23.7]} 17. Ne5 {[%clk 0:02:22.1]} 17... b5 {[%clk 0:02:16.6]}
18. Nc6 {[%clk 0:02:09.3]} 18... Ra8 {[%clk 0:02:13.3]} 19. Ne7+ {[%clk
0:01:56.5]} 19... Kh8 {[%clk 0:02:12.7]} 20. Rc7 {[%clk 0:01:55.1]} 20... Rb8
{[%clk 0:02:06.1]} 21. e5 {[%clk 0:01:31.7]} 21... Ng4 {[%clk 0:01:53.5]} 22.
Rdc1 {[%clk 0:01:18.9]} 22... Nxe5 {[%clk 0:01:37.9]} 23. Nxc8 {[%clk
0:01:15.4]} 23... Nc4 {[%clk 0:01:31.7]} 24. b3 {[%clk 0:01:01]} 24... Nxa3
{[%clk 0:01:30.5]} 25. Nd6 {[%clk 0:01:00.6]} 25... f6 {[%clk 0:01:27.5]} 26.
Ra1 {[%clk 0:00:55.1]} 26... b4 {[%clk 0:01:27.6]} 27. Nc4 {[%clk 0:00:55]}
27... Nxc4 {[%clk 0:01:25.5]} 28. Rxc4 {[%clk 0:00:54.6]} 28... Rb6 {[%clk
0:01:25.3]} 29. Ra4 {[%clk 0:00:53.4]} 29... Rfb8 {[%clk 0:01:23.7]} 30. Ra5
{[%clk 0:00:49]} 30... Kg8 {[%clk 0:01:23.5]} 31. Rac5 {[%clk 0:00:48.7]} 31...
Kf7 {[%clk 0:01:22.9]} 32. Rc7+ {[%clk 0:00:48.8]} 32... Kg6 {[%clk 0:01:23.2]}
33. Rg4+ {[%clk 0:00:48.8]} 33... Kh6 {[%clk 0:01:19.8]} 34. Rgxg7 {[%clk
0:00:46.9]} 34... e5 {[%clk 0:01:17.7]} 35. Be4 {[%clk 0:00:39.4]} 35... a5
{[%clk 0:01:10.5]} 36. Rxh7+ {[%clk 0:00:38.6]} 36... Kg5 {[%clk 0:01:10.7]} 37.
Rcg7# {[%clk 0:00:39]} 1-0

[Event "Early-Titled-Tuesday-Blitz-December-26-2023"]
[Site "Chess.com"]
[Date "2023.12.26"]
[Round "5"]
[White "ahkashefi2800"]
[Black "Legendinunknown"]
[Result "1-0"]
[WhiteElo "2573"]
[BlackElo "2692"]
[TimeControl "180+1"]
[EndTime "8:54:33 PST"]
[Termination "ahkashefi2800 won by resignation"]

1. d4 {[%clk 0:02:59]} 1... Nf6 {[%clk 0:02:59.5]} 2. Nf3 {[%clk 0:02:54.6]}
2... e6 {[%clk 0:02:59]} 3. g3 {[%clk 0:02:51.1]} 3... b5 {[%clk 0:02:55.2]} 4.
Bg2 {[%clk 0:02:51]} 4... Bb7 {[%clk 0:02:54.1]} 5. O-O {[%clk 0:02:50.4]} 5...
Be7 {[%clk 0:02:52.4]} 6. Bg5 {[%clk 0:02:50.1]} 6... O-O {[%clk 0:02:51.4]} 7.
a4 {[%clk 0:02:45.7]} 7... b4 {[%clk 0:02:50.1]} 8. Qd3 {[%clk 0:02:44.1]} 8...
a5 {[%clk 0:02:44.4]} 9. Bxf6 {[%clk 0:02:43.4]} 9... Bxf6 {[%clk 0:02:43.4]}
10. Ng5 {[%clk 0:02:43.8]} 10... Bxg5 {[%clk 0:02:43.7]} 11. Bxb7 {[%clk
0:02:43.7]} 11... Ra7 {[%clk 0:02:44.3]} 12. Bg2 {[%clk 0:02:43.5]} 12... d6
{[%clk 0:02:44.7]} 13. e3 {[%clk 0:02:41.8]} 13... c5 {[%clk 0:02:43]} 14. Nd2
{[%clk 0:02:37.3]} 14... Nd7 {[%clk 0:02:38.7]} 15. c3 {[%clk 0:02:35.4]} 15...
d5 {[%clk 0:02:35.3]} 16. Rfe1 {[%clk 0:02:18.9]} 16... bxc3 {[%clk 0:02:26.6]}
17. bxc3 {[%clk 0:02:17.7]} 17... f5 {[%clk 0:02:26.5]} 18. Rab1 {[%clk
0:02:16.7]} 18... c4 {[%clk 0:02:20.4]} 19. Qc2 {[%clk 0:02:06.2]} 19... Qc7
{[%clk 0:02:19]} 20. Rb5 {[%clk 0:01:58.6]} 20... Rb8 {[%clk 0:02:17.6]} 21.
Reb1 {[%clk 0:01:55.9]} 21... Rab7 {[%clk 0:02:14.2]} 22. Rxb7 {[%clk
0:01:45.7]} 22... Rxb7 {[%clk 0:02:15.1]} 23. Rxb7 {[%clk 0:01:45.6]} 23... Qxb7
{[%clk 0:02:16]} 24. Nxc4 {[%clk 0:01:44.2]} 24... Qc7 {[%clk 0:02:10.7]} 25.
Nb2 {[%clk 0:01:35.5]} 25... Nb6 {[%clk 0:02:07.5]} 26. Bf1 {[%clk 0:01:35.2]}
26... Be7 {[%clk 0:02:05.8]} 27. c4 {[%clk 0:01:33.7]} 27... dxc4 {[%clk
0:02:00.3]} 28. Nxc4 {[%clk 0:01:33.5]} 28... Nd5 {[%clk 0:01:58.7]} 29. Qb3
{[%clk 0:01:25.9]} 29... h6 {[%clk 0:01:53.1]} 30. Ne5 {[%clk 0:01:23.9]} 30...
Bd6 {[%clk 0:01:40.2]} 31. Bc4 {[%clk 0:01:16.9]} 31... Bxe5 {[%clk 0:00:58]}
32. Bxd5 {[%clk 0:01:15.3]} 32... exd5 {[%clk 0:00:58.9]} 33. Qxd5+ {[%clk
0:01:12.1]} 33... Kh8 {[%clk 0:00:59.8]} 34. dxe5 {[%clk 0:01:10.5]} 34... Qc2
{[%clk 0:00:54.1]} 35. e6 {[%clk 0:00:56.7]} 35... Qxa4 {[%clk 0:00:53.1]} 36.
e7 {[%clk 0:00:54.8]} 1-0

[Event "Early-Titled-Tuesday-Blitz-December-26-2023"]
[Site "Chess.com"]
[Date "2023.12.26"]
[Round "5"]
[White "campochess"]
[Black "wild3000"]
[Result "1-0"]
[WhiteElo "2185"]
[BlackElo "2406"]
[TimeControl "180+1"]
[EndTime "8:54:45 PST"]
[Termination "campochess won by resignation"]

1. d4 {[%clk 0:02:59.8]} 1... d5 {[%clk 0:02:58.3]} 2. Bg5 {[%clk 0:02:59.7]}
2... c6 {[%clk 0:02:54.3]} 3. Nc3 {[%clk 0:02:56.8]} 3... Nd7 {[%clk 0:02:55.2]}
4. Nf3 {[%clk 0:02:36.4]} 4... Ngf6 {[%clk 0:02:53.7]} 5. e3 {[%clk 0:02:35.3]}
5... g6 {[%clk 0:02:51.9]} 6. Bd3 {[%clk 0:02:34.7]} 6... Bg7 {[%clk 0:02:51.1]}
7. h4 {[%clk 0:02:33.6]} 7... h6 {[%clk 0:02:48.5]} 8. Bf4 {[%clk 0:02:32.9]}
8... Qa5 {[%clk 0:02:47.9]} 9. Qd2 {[%clk 0:02:31.4]} 9... b5 {[%clk 0:02:45.4]}
10. Ne5 {[%clk 0:02:29.1]} 10... Nxe5 {[%clk 0:02:40.2]} 11. dxe5 {[%clk
0:02:28.3]} 11... Nh5 {[%clk 0:02:32.8]} 12. Bh2 {[%clk 0:02:19.3]} 12... b4
{[%clk 0:02:12.1]} 13. Ne2 {[%clk 0:02:18.2]} 13... Rb8 {[%clk 0:02:03.6]} 14.
Nd4 {[%clk 0:02:17.2]} 14... Bb7 {[%clk 0:01:32]} 15. e6 {[%clk 0:02:16]} 15...
Rc8 {[%clk 0:01:30.4]} 16. exf7+ {[%clk 0:02:15.2]} 16... Kxf7 {[%clk
0:01:29.8]} 17. g4 {[%clk 0:02:02.3]} 17... Nf6 {[%clk 0:01:28.6]} 18. h5 {[%clk
0:02:02.3]} 18... Ne4 {[%clk 0:01:23.6]} 19. Bxe4 {[%clk 0:02:00.3]} 19... dxe4
{[%clk 0:01:23.7]} 20. hxg6+ {[%clk 0:02:00.3]} 20... Kxg6 {[%clk 0:01:22.6]}
21. a3 {[%clk 0:01:46.6]} 21... c5 {[%clk 0:01:08.8]} 22. Nf5 {[%clk 0:01:44]}
22... Bf6 {[%clk 0:00:55.9]} 23. O-O {[%clk 0:01:37.4]} 23... Qd8 {[%clk
0:00:50.7]} 24. Qe2 {[%clk 0:01:32.1]} 24... h5 {[%clk 0:00:45.1]} 25. axb4
{[%clk 0:01:30.3]} 25... hxg4 {[%clk 0:00:42.8]} 26. Qxg4+ {[%clk 0:01:28.2]}
26... Kf7 {[%clk 0:00:42.8]} 27. Bg3 {[%clk 0:01:28]} 27... a6 {[%clk
0:00:37.3]} 28. Rad1 {[%clk 0:01:25.2]} 28... Qg8 {[%clk 0:00:36.6]} 29. Qf4
{[%clk 0:01:22]} 29... Qg6 {[%clk 0:00:25.5]} 30. Rd7 {[%clk 0:01:15.2]} 30...
Bc6 {[%clk 0:00:19.7]} 31. Nxe7 {[%clk 0:01:09.5]} 31... Ke8 {[%clk 0:00:15.1]}
32. Nxg6 {[%clk 0:01:05]} 1-0

[Event "Early-Titled-Tuesday-Blitz-December-26-2023"]
[Site "Chess.com"]
[Date "2023.12.26"]
[Round "5"]
[White "Yurasova_Daria"]
[Black "Ezov"]
[Result "1-0"]
[WhiteElo "2462"]
[BlackElo "2155"]
[TimeControl "180+1"]
[EndTime "8:54:47 PST"]
[Termination "Yurasova_Daria won by resignation"]

1. d4 {[%clk 0:02:53.5]} 1... d5 {[%clk 0:02:59.2]} 2. Nf3 {[%clk 0:02:43]} 2...
c5 {[%clk 0:02:58.4]} 3. e3 {[%clk 0:02:37.5]} 3... Nc6 {[%clk 0:02:57.9]} 4.
Be2 {[%clk 0:02:34.3]} 4... Bf5 {[%clk 0:02:55.2]} 5. O-O {[%clk 0:02:34.7]}
5... e6 {[%clk 0:02:54.9]} 6. c4 {[%clk 0:02:34.1]} 6... dxc4 {[%clk 0:02:53.6]}
7. dxc5 {[%clk 0:02:32]} 7... Bxc5 {[%clk 0:02:50.4]} 8. Qxd8+ {[%clk
0:02:29.2]} 8... Rxd8 {[%clk 0:02:51.3]} 9. Nc3 {[%clk 0:02:26.8]} 9... Bd3
{[%clk 0:02:49.6]} 10. Bxd3 {[%clk 0:02:27.2]} 10... cxd3 {[%clk 0:02:42.5]} 11.
Bd2 {[%clk 0:02:24.6]} 11... Nf6 {[%clk 0:02:41.3]} 12. Rac1 {[%clk 0:02:23.7]}
12... Bb4 {[%clk 0:02:32.3]} 13. Rfd1 {[%clk 0:02:23]} 13... O-O {[%clk
0:02:31]} 14. a3 {[%clk 0:02:20.3]} 14... Ba5 {[%clk 0:02:29.9]} 15. b4 {[%clk
0:02:19.6]} 15... Bb6 {[%clk 0:02:29.3]} 16. Na4 {[%clk 0:02:19.3]} 16... Nd5
{[%clk 0:02:22.7]} 17. e4 {[%clk 0:02:15.7]} 17... Nde7 {[%clk 0:02:17.8]} 18.
Nxb6 {[%clk 0:02:12.1]} 18... axb6 {[%clk 0:02:18.2]} 19. Be3 {[%clk 0:02:12.4]}
19... b5 {[%clk 0:02:11.5]} 20. Rc3 {[%clk 0:02:10.7]} 20... Ng6 {[%clk
0:02:02.1]} 21. Rcxd3 {[%clk 0:02:06.5]} 21... Rxd3 {[%clk 0:02:01.3]} 22. Rxd3
{[%clk 0:02:07.4]} 22... Rd8 {[%clk 0:02:01.3]} 23. Rxd8+ {[%clk 0:02:03.8]}
23... Nxd8 {[%clk 0:02:02.2]} 24. Nd4 {[%clk 0:02:02.8]} 24... Ne5 {[%clk
0:01:54.2]} 25. Nxb5 {[%clk 0:02:00.9]} 25... Nc4 {[%clk 0:01:54.1]} 26. Kf1
{[%clk 0:01:55.3]} 26... Kf8 {[%clk 0:01:52.1]} 27. Ke2 {[%clk 0:01:55.4]} 27...
Ke8 {[%clk 0:01:52.2]} 28. Kd3 {[%clk 0:01:54]} 28... Ne5+ {[%clk 0:01:52.1]}
29. Kc3 {[%clk 0:01:51.3]} 29... Kd7 {[%clk 0:01:50.7]} 30. h3 {[%clk
0:01:50.1]} 30... f6 {[%clk 0:01:48.9]} 31. f4 {[%clk 0:01:48.7]} 31... Nec6
{[%clk 0:01:48.6]} 32. Nd4 {[%clk 0:01:47.5]} 32... Ne7 {[%clk 0:01:47.4]} 33.
a4 {[%clk 0:01:46.5]} 33... Kd6 {[%clk 0:01:43.3]} 34. Nb5+ {[%clk 0:01:45.6]}
34... Kc6 {[%clk 0:01:42.6]} 35. Bc5 {[%clk 0:01:44.7]} 35... Nc8 {[%clk
0:01:41]} 36. Nd4+ {[%clk 0:01:40.8]} 36... Kd7 {[%clk 0:01:39.7]} 37. b5 {[%clk
0:01:41.2]} 37... e5 {[%clk 0:01:36.7]} 38. fxe5 {[%clk 0:01:39]} 38... fxe5
{[%clk 0:01:37.6]} 39. Nf3 {[%clk 0:01:39.4]} 39... Nf7 {[%clk 0:01:35.7]} 40.
a5 {[%clk 0:01:37.4]} 40... Ncd6 {[%clk 0:01:31.1]} 41. Bxd6 {[%clk 0:01:31.6]}
41... Kxd6 {[%clk 0:01:32]} 42. Kb4 {[%clk 0:01:31.8]} 42... Nd8 {[%clk
0:01:29.8]} 43. a6 {[%clk 0:01:26]} 43... bxa6 {[%clk 0:01:27.1]} 44. bxa6
{[%clk 0:01:24]} 44... Nc6+ {[%clk 0:01:22.5]} 45. Kb5 {[%clk 0:01:18.4]} 45...
Kc7 {[%clk 0:01:23]} 46. Kc5 {[%clk 0:01:15.4]} 46... g6 {[%clk 0:01:21.3]} 47.
Kd5 {[%clk 0:01:14.8]} 47... Kb6 {[%clk 0:01:19.3]} 48. Nxe5 {[%clk 0:01:11.5]}
48... Nb4+ {[%clk 0:01:19.3]} 49. Kd6 {[%clk 0:01:05.6]} 49... Kxa6 {[%clk
0:01:18]} 50. Nc6 {[%clk 0:01:03.8]} 50... Nd3 {[%clk 0:01:16.1]} 51. e5 {[%clk
0:01:04.2]} 51... Nf4 {[%clk 0:01:14.9]} 52. e6 {[%clk 0:01:02.7]} 52... Nxe6
{[%clk 0:01:11.3]} 53. Kxe6 {[%clk 0:01:02.3]} 53... Kb6 {[%clk 0:01:12.2]} 54.
Ne5 {[%clk 0:01:01.2]} 1-0

[Event "Early-Titled-Tuesday-Blitz-December-26-2023"]
[Site "Chess.com"]
[Date "2023.12.26"]
[Round "5"]
[White "laskakid"]
[Black "C_K_G"]
[Result "1-0"]
[WhiteElo "2373"]
[BlackElo "2041"]
[TimeControl "180+1"]
[EndTime "8:54:51 PST"]
[Termination "laskakid won on time"]

1. d4 {[%clk 0:03:00.9]} 1... d5 {[%clk 0:02:52.4]} 2. c4 {[%clk 0:03:00.7]}
2... e6 {[%clk 0:02:52]} 3. Nc3 {[%clk 0:03:00.3]} 3... Nf6 {[%clk 0:02:52.1]}
4. cxd5 {[%clk 0:03:00.3]} 4... exd5 {[%clk 0:02:52]} 5. Bg5 {[%clk 0:03:00.3]}
5... Be7 {[%clk 0:02:51.9]} 6. e3 {[%clk 0:03:00.5]} 6... O-O {[%clk 0:02:51.6]}
7. Bd3 {[%clk 0:03:00.1]} 7... b6 {[%clk 0:02:51.7]} 8. Bxf6 {[%clk 0:02:52.7]}
8... Bxf6 {[%clk 0:02:51.1]} 9. Qh5 {[%clk 0:02:52.3]} 9... h6 {[%clk
0:02:41.4]} 10. Qxd5 {[%clk 0:02:51.9]} 10... Bd7 {[%clk 0:02:27.2]} 11. Qxa8
{[%clk 0:02:33.1]} 11... Bc6 {[%clk 0:02:15.2]} 12. Qxa7 {[%clk 0:02:33.2]}
12... Bxg2 {[%clk 0:01:16.4]} 13. Be4 {[%clk 0:02:33]} 13... Nc6 {[%clk
0:01:11.5]} 14. Qa4 {[%clk 0:02:03]} 14... Nxd4 {[%clk 0:01:07.3]} 15. Bxg2
{[%clk 0:01:53.4]} 15... Nf5 {[%clk 0:00:19.7]} 16. Nge2 {[%clk 0:01:44.8]}
16... Bh4 {[%clk 0:00:13.9]} 17. Qf4 {[%clk 0:01:25]} 17... Qf6 {[%clk
0:00:10.7]} 18. O-O-O {[%clk 0:01:15.6]} 18... g5 {[%clk 0:00:08.3]} 19. Qf3
{[%clk 0:01:07.8]} 19... Qe5 {[%clk 0:00:07.1]} 20. Nd4 {[%clk 0:01:02.2]} 20...
Nd6 {[%clk 0:00:06.8]} 21. Qd5 {[%clk 0:00:55.5]} 21... Qe8 {[%clk 0:00:05.6]}
22. Nf5 {[%clk 0:00:51.4]} 22... Nxf5 {[%clk 0:00:04.8]} 23. Qxf5 {[%clk
0:00:50.6]} 23... Qe7 {[%clk 0:00:03.8]} 24. Be4 {[%clk 0:00:48.1]} 1-0